bitfinex-derivatives/quotes_BNBF0:USTF0_20251203
["timestamp","ask_amount","ask_price","bid_price","bid_amount"]
[1764771293475,1.06505533,896.73,894.55,0.6997016]
[1764771293781,1.06505533,896.72,894.56,0.6997016]
[1764771294075,1.06505533,896.71,894.57,0.6997016]
[1764771294274,1.06505533,896.7,894.58,0.6997016]
[1764771294477,1.63431321,897.14,894.27,1.158]
[1764771294478,1.06505533,896.69,894.59,0.6997016]
[1764771294679,1.06505533,896.68,894.6,0.6997016]
[1764771294876,1.06505533,896.67,894.61,0.6997016]
[1764771295179,1.06505533,896.66,894.62,0.6997016]
[1764771295378,1.63431321,897.06,894.5,0.83396521]
[1764771295379,1.06505533,896.65,894.63,0.6997016]
[1764771295576,1.06505533,896.64,894.64,0.6997016]
[1764771295779,1.06505533,896.63,894.65,0.6997016]
[1764771296079,1.06505533,896.62,894.66,0.6997016]
[1764771296278,1.06505533,896.61,894.67,0.6997016]
[1764771296473,1.06505533,896.6,894.68,0.6997016]
[1764771296675,1.63431321,896.99,894.69,0.6997016]
[1764771296676,1.06505533,896.59,894.69,0.6997016]
[1764771296979,0.00824389,897.5,894.27,1.158]
[1764771296980,1.06505533,896.58,894.7,0.6997016]
[1764771297276,1.06505533,896.57,894.33,0.83396521]
[1764771297484,1.06505533,896.56,894.34,0.7037947]
[1764771297680,1.06505533,896.55,894.35,0.7037947]
[1764771297880,1.06505533,896.54,894.36,0.7037947]
[1764771298081,1.06505533,896.53,894.37,0.7037947]
[1764771298381,1.06505533,896.52,894.38,0.7037947]
[1764771298576,1.06505533,896.51,894.39,0.7037947]
[1764771298781,1.06505533,896.5,894.4,0.7037947]
[1764771298985,1.06505533,896.49,894.41,0.7037947]
[1764771299284,0.00947336,897.42,894.42,0.7037947]
[1764771299285,1.06505533,896.48,894.42,0.7037947]
[1764771299488,1.06505533,896.47,894.43,0.7037947]
[1764771299682,1.06505533,896.46,894.44,0.7037947]
[1764771299880,1.06505533,896.45,894.45,0.7037947]
[1764771300083,1.06505533,896.44,894.46,0.7037947]
[1764771300283,1.06505533,896.43,894.47,0.7037947]
[1764771300586,1.06505533,896.42,894.48,0.7037947]
[1764771300782,1.06505533,896.41,894.49,0.7037947]
[1764771300987,1.06505533,896.4,894.5,0.7037947]
[1764771301183,1.06505533,896.39,894.51,0.7037947]
[1764771301389,1.06505533,896.38,894.52,0.7037947]
[1764771301689,1.06505533,896.37,894.53,0.7037947]
[1764771301989,1.06505533,896.36,894.61,0.83396521]
[1764771302289,1.06505533,896.35,894.63,0.83396521]
[1764771302485,1.07587124,896.34,894.64,1.53775991]
[1764771302688,1.63431321,896.84,894.65,0.7037947]
[1764771302885,1.07587649,896.83,894.66,1.53775991]
[1764771303086,1.07587649,896.82,894.71,0.83396521]
[1764771303290,1.07587649,896.81,894.72,0.7037947]
[1764771303490,1.07587649,896.8,894.73,0.7037947]
[1764771303686,1.07587649,896.79,894.74,0.7037947]
[1764771303884,2.73108939,897.56,894.75,0.7037947]
[1764771303885,1.07587649,896.78,894.75,0.7037947]
[1764771304086,1.07587649,896.77,894.76,0.7037947]
[1764771304290,1.07587649,896.76,894.77,0.7037947]
[1764771304589,5.94263479,897.68,894.78,0.7037947]
[1764771304590,1.07587649,896.75,894.78,0.7037947]
[1764771304787,1.07587649,896.74,894.79,0.7037947]
[1764771304989,1.07587649,896.74,894.61,0.83396521]
[1764771304990,1.07587649,896.73,894.8,0.7037947]
[1764771305191,1.07587649,896.72,894.81,0.7037947]
[1764771305386,1.63431321,896.85,894.61,0.83396521]
[1764771305387,1.07587649,896.71,894.82,0.7037947]
[1764771305584,1.07587649,896.71,894.5,8.59007727]
[1764771305585,1.07587649,896.7,894.83,0.7037947]
[1764771305786,2.73108939,897.51,894.5,8.59007727]
[1764771305787,1.07587649,896.69,894.84,0.7037947]
[1764771306089,1.07587649,896.68,894.85,0.7037947]
[1764771306285,1.07587649,896.68,894.58,0.83396521]
[1764771306286,1.07587649,896.67,894.86,0.7037947]
[1764771306486,1.07587649,896.66,894.51,0.83396521]
[1764771306688,1.07587649,896.65,894.52,0.70450324]
[1764771306885,1.07587649,896.64,894.53,0.70450324]
[1764771307088,1.07587649,896.63,894.54,0.70450324]
[1764771307286,1.07587649,896.62,894.55,0.70450324]
[1764771307489,1.07587649,896.61,894.56,0.70450324]
[1764771307693,1.07587649,896.61,894.5,8.59007727]
[1764771307694,1.07587649,896.6,894.57,0.70450324]
[1764771307890,1.07587649,896.59,894.58,0.70450324]
[1764771308091,1.07587649,896.58,894.59,0.70450324]
[1764771308292,1.63431321,896.66,894.5,8.59007727]
[1764771308293,1.07587649,896.57,894.6,0.70450324]
[1764771308490,1.07587649,896.56,894.61,0.70450324]
[1764771308789,1.07587649,896.55,894.5,8.59007727]
[1764771309100,1.07587649,896.54,894.51,0.70468922]
[1764771309391,1.07587649,896.53,894.52,0.70468922]
[1764771309593,1.07587649,896.52,894.53,0.70468922]
[1764771309890,1.07587649,896.51,894.54,0.70468922]
[1764771310094,1.07587649,896.5,894.55,0.70468922]
[1764771310390,1.63431321,896.43,894.5,8.59007727]
[1764771310591,1.07587649,896.42,894.5,8.59007727]
[1764771310890,1.63431321,896.43,894.5,8.59007727]
[1764771311292,1.63431321,896.42,894.5,8.59007727]
[1764771311893,1.63431321,896.43,894.5,8.59007727]
[1764771312390,1.63431321,896.6,894.51,0.70579645]
[1764771312590,1.63431321,896.59,894.52,0.70579645]
[1764771312794,1.63431321,896.57,894.53,0.70579645]
[1764771312990,1.63431321,896.57,894.54,0.70579645]
[1764771313292,1.63431321,896.56,894.55,0.70579645]
[1764771313490,1.63431321,896.56,894.56,0.70579645]
[1764771313694,1.63431321,896.56,894.57,0.70579645]
[1764771313989,1.63431321,896.56,894.58,0.70579645]
[1764771314190,1.63431321,896.54,894.59,0.70579645]
[1764771314390,1.63431321,896.54,894.6,0.70579645]
[1764771314691,1.63431321,896.54,894.51,1.577]
[1764771314894,1.63431321,896.5,894.52,0.70623741]
[1764771315189,1.63431321,896.46,894.53,0.70623741]
[1764771315390,1.63431321,896.46,894.54,0.70623741]
[1764771315696,1.63431321,896.46,894.55,0.70623741]
[1764771315994,1.63431321,896.46,894.56,0.70623741]
[1764771316194,1.63431321,896.43,894.57,0.70623741]
[1764771316393,1.63431321,896.43,894.58,0.70623741]
[1764771316693,1.63431321,896.42,894.59,0.70623741]
[1764771316890,1.63431321,896.42,894.51,1.577]
[1764771316891,1.63431321,896.42,894.6,0.70623741]
[1764771317189,0.01337875,897.32,894.51,1.577]
[1764771317190,1.63431321,896.36,894.61,0.70623741]
[1764771317394,1.63431321,896.37,894.62,0.70623741]
[1764771317589,3.82352515,897.34,894.63,0.70623741]
[1764771317590,1.63431321,896.38,894.63,0.70623741]
[1764771317789,1.63431321,896.45,894.64,0.70623741]
[1764771318094,1.63431321,896.45,894.65,0.70623741]
[1764771318296,1.63431321,896.41,894.66,0.70623741]
[1764771318496,1.63431321,896.42,894.67,0.70623741]
[1764771318798,1.63431321,896.44,894.68,0.70623741]
[1764771318994,1.63431321,896.43,894.69,0.70623741]
[1764771319192,1.63431321,896.38,894.7,0.70623741]
[1764771319390,1.63431321,896.39,894.71,0.70623741]
[1764771319689,1.63431321,896.38,894.72,0.70623741]
[1764771319893,1.63431321,896.31,894.66,1.38]
[1764771320094,1.63431321,896.32,894.67,0.70844536]
[1764771320392,1.63431321,896.31,894.68,0.70844536]
[1764771320592,1.63431321,896.31,894.69,0.70844536]
[1764771320796,1.63431321,896.33,894.7,0.70844536]
[1764771321097,1.63431321,896.32,894.71,0.70844536]
[1764771321298,1.63431321,896.32,894.72,0.70844536]
[1764771321595,1.63431321,896.4,894.73,0.70844536]
[1764771321798,1.63431321,896.4,894.74,0.70844536]
[1764771322091,1.63431321,896.4,894.75,0.70844536]
[1764771322293,1.63431321,896.34,894.76,0.70844536]
[1764771322595,3.82352515,897.36,894.66,1.38]
[1764771322596,1.63431321,896.39,894.77,0.70958671]
[1764771322796,1.63431321,896.56,894.81,0.82962997]
[1764771322992,1.63431321,896.56,894.82,0.70958671]
[1764771323192,1.63431321,896.49,894.83,0.70958671]
[1764771323491,1.63431321,896.53,894.85,0.82962997]
[1764771323692,1.63431321,896.52,894.86,0.70958671]
[1764771323893,1.63431321,896.52,894.87,0.70958671]
[1764771324097,1.63431321,896.52,894.88,0.70958671]
[1764771324295,1.63431321,896.46,894.89,0.70958671]
[1764771324495,1.63431321,896.46,894.9,0.70958671]
[1764771324694,1.63431321,896.46,894.91,0.70958671]
[1764771324894,1.63431321,896.46,894.66,1.38]
[1764771324895,1.63431321,896.47,894.92,0.70958671]
[1764771325095,1.63431321,896.53,894.95,0.82962997]
[1764771325294,1.63431321,896.62,895.05,0.82962997]
[1764771325598,1.63431321,896.65,895.08,0.82962997]
[1764771325801,1.63431321,896.73,895.17,0.82962997]
[1764771325999,2.73108939,897.3,894.66,1.38]
[1764771326000,1.63431321,896.71,895.18,0.70958671]
[1764771326200,1.63431321,896.71,894.99,1.11931461]
[1764771326201,1.63431321,896.75,895.19,0.70958671]
[1764771326395,1.63431321,896.75,895.2,0.70958671]
[1764771326597,1.63431321,896.75,895.21,0.70958671]
[1764771326898,1.63431321,896.73,895.22,0.70958671]
[1764771327198,1.63431321,896.69,895.23,0.70958671]
[1764771327494,2.73108939,897.34,895.24,0.70958671]
[1764771327495,1.63431321,896.73,895.24,0.70958671]
[1764771327699,1.63431321,896.73,895.25,0.70958671]
[1764771327898,2.73108939,897.38,895.26,0.70958671]
[1764771327899,1.63431321,896.72,895.26,0.70958671]
[1764771328099,1.63431321,896.74,895.27,0.70958671]
[1764771328301,1.63431321,896.76,895.28,0.70958671]
[1764771328501,1.63431321,896.74,895.29,0.70958671]
[1764771328797,1.63431321,896.74,895.3,0.70958671]
[1764771328999,1.63431321,896.75,895.31,0.70958671]
[1764771329201,1.63431321,896.75,895.32,0.70958671]
[1764771329396,1.63431321,896.75,895.33,0.70958671]
[1764771329601,1.63431321,896.81,895.34,0.70958671]
[1764771329802,1.63431321,896.81,895.3,1.251]
[1764771329803,1.63431321,896.81,895.35,0.70958671]
[1764771330000,1.63431321,896.81,895.36,0.70958671]
[1764771330199,1.63431321,896.81,895.37,0.70958671]
[1764771330402,0.00808081,897.71,895.38,0.70958671]
[1764771330403,1.63431321,896.77,895.38,0.70958671]
[1764771330600,1.63431321,896.77,895.39,0.70958671]
[1764771330799,1.63431321,896.77,895.4,0.70958671]
[1764771331103,1.63431321,896.8,895.41,0.70958671]
[1764771331300,1.63431321,896.81,895.42,0.70958671]
[1764771331502,1.63431321,896.83,895.43,0.70987395]
[1764771331706,1.63431321,896.83,895.44,0.70987395]
[1764771331906,1.63431321,896.83,895.3,1.251]
[1764771332105,1.63431321,896.89,895.31,0.7098738]
[1764771332303,1.63431321,896.89,895.32,0.7098738]
[1764771332504,1.63431321,896.89,895.33,0.7098738]
[1764771332708,1.63431321,896.89,895.34,0.7098738]
[1764771333004,1.63431321,896.89,895.35,0.7098738]
[1764771333209,1.63431321,896.97,895.36,0.7098738]
[1764771333406,1.63431321,897.02,895.37,0.7098738]
[1764771333707,1.63431321,897.03,895.38,0.7098738]
[1764771333906,1.63431321,897.03,895.39,0.7098738]
[1764771334109,1.63431321,897.03,895.4,0.7098738]
[1764771334307,1.63431321,897.05,895.41,0.7098738]
[1764771334508,1.63431321,897.05,895.42,0.7098738]
[1764771334811,1.63431321,897.05,895.3,1.251]
[1764771334812,1.63431321,897.04,895.43,0.7098738]
[1764771335009,1.63431321,897.05,895.44,0.7098738]
[1764771335214,1.63431321,897.06,895.45,0.7098738]
[1764771335410,1.63431321,897.06,895.46,0.7098738]
[1764771335716,1.63431321,897.06,895.47,0.7098738]
[1764771335914,1.63431321,897.06,895.48,0.7098738]
[1764771336215,1.63431321,897.08,895.49,0.7098738]
[1764771336409,1.63431321,897.08,895.5,0.7098738]
[1764771336614,1.63431321,897.09,895.51,0.7098738]
[1764771336809,1.63431321,897.13,895.52,0.7098738]
[1764771337012,1.63431321,897.15,895.53,0.7098738]
[1764771337209,1.63431321,897.16,895.54,0.7098738]
[1764771337415,1.63431321,897.16,895.55,0.7098738]
[1764771337615,1.63431321,897.17,895.56,0.7098738]
[1764771337810,1.63431321,897.17,895.57,0.7098738]
[1764771338115,1.63431321,897.21,895.58,0.7098738]
[1764771338311,1.63431321,897.25,895.59,0.7098738]
[1764771338615,1.63431321,897.25,895.6,0.7098738]
[1764771338810,1.63431321,897.34,895.61,0.7098738]
[1764771339013,1.63431321,897.34,895.62,0.7098738]
[1764771339211,1.63431321,897.34,895.44,0.82962997]
[1764771339212,1.63431321,897.34,895.63,0.7098738]
[1764771339510,1.63431321,897.35,895.64,0.7098738]
[1764771339711,1.63431321,897.35,895.65,0.7098738]
[1764771339910,1.63431321,897.37,895.66,0.7098738]
[1764771340112,1.63431321,897.37,895.67,0.7098738]
[1764771340313,1.63431321,897.37,895.68,0.7098738]
[1764771340512,1.63431321,897.41,895.69,0.7098738]
[1764771340714,1.63431321,897.4,895.7,0.7098738]
[1764771340915,1.63431321,897.41,895.71,0.7098738]
[1764771341217,1.63431321,897.44,895.72,0.7098738]
[1764771341420,1.63431321,897.44,895.3,1.251]
[1764771341421,1.63431321,897.54,895.73,0.7098738]
[1764771341620,1.63431321,897.56,895.74,0.7098738]
[1764771341822,1.63431321,897.57,895.75,0.7098738]
[1764771342020,1.63431321,897.57,895.76,0.7098738]
[1764771342220,1.63431321,897.59,895.77,0.7098738]
[1764771342517,1.63431321,897.59,895.78,0.7098738]
[1764771342717,7.576948,897.68,895.79,0.7098738]
[1764771343017,1.63431321,897.68,895.8,0.7098738]
[1764771343221,1.63431321,897.68,895.81,0.7098738]
[1764771343419,1.63431321,897.68,895.82,0.7098738]
[1764771343721,1.63431321,897.68,895.83,0.7098738]
[1764771343922,1.63431321,897.68,895.84,0.7098738]
[1764771344117,1.63431321,897.69,895.85,0.7098738]
[1764771344321,1.63431321,897.69,895.86,0.7098738]
[1764771344523,1.63431321,897.69,895.87,0.7098738]
[1764771344722,1.63431321,897.7,895.88,0.7098738]
[1764771344925,1.63431321,897.7,895.89,0.7098738]
[1764771345118,1.63431321,897.72,895.9,0.7098738]
[1764771345425,1.63431321,897.73,895.91,0.7098738]
[1764771345619,1.63431321,897.73,895.92,0.7098738]
[1764771345819,1.63431321,897.73,895.93,0.7098738]
[1764771346024,1.63431321,897.75,895.94,0.7098738]
[1764771346326,1.63431321,897.78,895.95,0.7098738]
[1764771346625,1.63431321,897.78,895.96,0.7098738]
[1764771346825,1.63431321,897.98,895.97,1.53950377]
[1764771347125,1.63431321,897.98,895.98,1.53950377]
[1764771347325,1.63431321,898.03,896.02,0.82962997]
[1764771347525,1.63431321,898.11,896.11,0.82962997]
[1764771347723,1.63431321,898.11,896.12,0.7098738]
[1764771347926,1.63431321,898.09,896.13,0.7098738]
[1764771348223,1.63431321,898.09,896.14,0.7098738]
[1764771348429,1.63431321,898.09,896.15,0.7098738]
[1764771348624,1.63431321,898.09,896.16,0.7098738]
[1764771348822,1.63431321,898.09,896.17,0.7098738]
[1764771349025,1.63431321,898.09,896.18,0.7098738]
[1764771349325,5.94887049,898.19,896.19,0.7098738]
[1764771349326,1.63431321,897.97,896.19,0.7098738]
[1764771349523,1.63431321,897.97,895.64,1.67897192]
[1764771349524,1.63431321,897.95,896.2,0.7098738]
[1764771349725,1.63431321,898.06,896.21,0.7098738]
[1764771349922,1.63431321,898.07,896.22,0.70720648]
[1764771350229,1.63431321,898.03,896.21,1.105]
[1764771350724,1.63431321,898.02,896.21,1.105]
[1764771351428,1.63431321,898.03,896.21,1.105]
[1764771352028,1.63431321,898.02,896.21,1.105]
[1764771352224,1.63431321,898.12,896.21,1.105]
[1764771352629,1.63431321,898.12,896.22,1.434]
[1764771353129,1.63431321,898.17,896.22,1.434]
[1764771353325,5.94887049,898.19,896.22,1.434]
[1764771353725,5.94887049,898.19,896.23,0.70549534]
[1764771353928,5.94887049,898.19,896.24,0.70549534]
[1764771354231,5.94887049,898.19,896.25,0.70549534]
[1764771354424,5.94887049,898.19,896.26,0.70549534]
[1764771354625,5.94887049,898.19,896.27,0.70549534]
[1764771354826,5.94887049,898.19,896.22,1.434]
[1764771355025,5.94887049,898.19,896.23,0.70462168]
[1764771355225,5.94887049,898.19,896.24,0.70462168]
[1764771355425,5.94887049,898.19,896.22,1.434]
[1764771355627,5.94887049,898.19,896.23,0.70387011]
[1764771355825,5.94887049,898.19,896.24,0.70387011]
[1764771356029,5.94887049,898.19,896.22,1.434]
[1764771356330,5.94887049,898.19,896.23,0.70386988]
[1764771356524,5.94887049,898.19,896.24,0.70331926]
[1764771356728,5.94887049,898.19,896.25,0.70331926]
[1764771357031,5.94887049,898.19,896.26,0.70331926]
[1764771357226,5.94887049,898.19,896.27,0.70331926]
[1764771357423,5.94887049,898.19,896.22,1.434]
[1764771357730,5.94887049,898.19,896.23,0.70277366]
[1764771357929,5.94887049,898.19,896.22,1.434]
[1764771362531,1.63431321,898.15,896.22,1.434]
[1764771362829,5.94887049,898.19,896.22,1.434]
[1764771362830,1.63431321,898.14,896.22,1.434]
[1764771363033,1.63431321,898.15,896.22,1.434]
[1764771363231,1.63431321,898.16,896.22,1.434]
[1764771363630,1.63431321,898.18,896.22,1.434]
[1764771363833,1.63431321,898.17,896.22,1.434]
[1764771364030,1.63431321,898.16,896.22,1.434]
[1764771364331,5.94887049,898.19,896.22,1.434]
[1764771365335,1.63431321,898.16,896.22,1.434]
[1764771365529,1.63431321,898.13,896.22,1.434]
[1764771365729,1.63431321,898.08,896.22,1.434]
[1764771365934,1.63431321,898.03,896.22,1.434]
[1764771366130,1.63431321,897.92,896.22,1.434]
[1764771367333,1.63431321,897.91,896.22,1.434]
[1764771368137,1.63431321,897.9,896.22,1.434]
[1764771368333,1.63431321,897.89,896.22,1.434]
[1764771368536,1.63431321,897.81,896.22,1.434]
[1764771369232,1.63431321,897.79,896.22,1.434]
[1764771369436,1.63431321,897.82,896.22,1.434]
[1764771369736,1.63431321,897.91,896.22,1.434]
[1764771370137,1.63431321,897.89,896.22,1.434]
[1764771370542,1.63431321,897.91,896.22,1.434]
[1764771370742,1.63431321,897.95,896.22,1.434]
[1764771370942,1.63431321,897.98,896.22,1.434]
[1764771371241,1.63431321,897.93,896.22,1.434]
[1764771371436,1.63431321,897.91,896.22,1.434]
[1764771371836,1.63431321,897.83,896.22,1.434]
[1764771372036,1.63431321,897.8,896.22,1.434]
[1764771372241,1.63431321,897.75,896.22,1.434]
[1764771372839,1.63431321,897.78,896.22,1.434]
[1764771373041,1.63431321,897.79,896.22,1.434]
[1764771374541,1.63431321,897.87,896.22,1.434]
[1764771374745,1.63431321,897.83,896.22,1.434]
[1764771374944,1.63431321,897.84,896.22,1.434]
[1764771375244,1.63431321,897.82,896.22,1.434]
[1764771376245,1.63431321,897.91,896.22,1.434]
[1764771376744,1.63431321,897.85,896.22,1.434]
[1764771377247,1.63431321,897.78,896.22,1.434]
[1764771377547,1.63431321,897.8,896.22,1.434]
[1764771378149,1.63431321,897.73,896.22,1.434]
[1764771379349,5.94887049,898.19,896.22,1.434]
[1764771379350,1.63431321,897.81,896.22,1.434]
[1764771380247,1.63431321,897.72,896.22,1.434]
[1764771380452,1.63431321,897.7,896.22,1.434]
[1764771380647,1.63431321,897.63,896.22,1.434]
[1764771381550,1.63431321,897.51,896.22,1.434]
[1764771381757,1.63431321,897.5,896.22,1.434]
[1764771382458,1.63431321,897.39,896.22,1.434]
[1764771383153,1.63431321,897.35,896.22,1.434]
[1764771383558,1.63431321,897.32,896.22,1.434]
[1764771385055,1.63431321,897.27,896.22,1.434]
[1764771385258,1.63431321,897.24,896.22,1.434]
[1764771385462,1.63431321,897.21,896.22,1.434]
[1764771386053,1.63431321,897.22,896.22,1.434]
[1764771386257,2.73108939,897.86,896.22,1.434]
[1764771386258,1.63431321,897.2,896.22,1.434]
[1764771387160,2.73108939,897.85,896.22,1.434]
[1764771387161,1.63431321,897.21,896.22,1.434]
[1764771387561,1.63431321,897.19,896.22,1.434]
[1764771388256,1.63431321,897.17,896.22,1.434]
[1764771389062,1.63431321,897.16,896.22,1.434]
[1764771389465,1.63431321,897.15,896.22,1.434]
[1764771389664,1.63431321,897.14,896.22,1.434]
[1764771389865,1.63431321,897.15,896.22,1.434]
[1764771390066,1.63431321,897.16,896.22,1.434]
[1764771390563,1.63431321,897.15,896.22,1.434]
[1764771390962,1.63431321,897.14,896.22,1.434]
[1764771391563,1.63431321,897.13,896.22,1.434]
[1764771391764,1.63431321,897.14,896.22,1.434]
[1764771391964,1.63431321,897.13,896.22,1.434]
[1764771392463,1.63431321,897.14,896.22,1.434]
[1764771393168,1.63431321,897.13,896.22,1.434]
[1764771393367,1.63431321,897.14,896.22,1.434]
[1764771393664,1.63431321,897.15,896.22,1.434]
[1764771394770,1.63431321,897.16,896.22,1.434]
[1764771394966,1.63431321,897.17,896.22,1.434]
[1764771395269,1.63431321,897.27,896.22,1.434]
[1764771396270,1.63431321,897.26,896.22,1.434]
[1764771398273,1.63431321,897.27,896.22,1.434]
[1764771398569,1.63431321,897.29,896.22,1.434]
[1764771399875,1.63431321,897.3,896.22,1.434]
[1764771400077,1.63431321,897.34,896.22,1.434]
[1764771400475,2.73108939,897.98,896.22,1.434]
[1764771400476,1.63431321,897.35,896.22,1.434]
[1764771400879,5.94887049,898.19,896.22,1.434]
[1764771400880,1.63431321,897.36,896.22,1.434]
[1764771401177,1.63431321,897.43,896.22,1.434]
[1764771401378,1.63431321,897.5,896.22,1.434]
[1764771401578,1.63431321,897.52,896.22,1.434]
[1764771401776,1.63431321,897.53,896.22,1.434]
[1764771401981,1.63431321,897.54,896.22,1.434]
[1764771402182,1.63431321,897.58,896.22,1.434]
[1764771402382,1.63431321,897.65,896.22,1.434]
[1764771402580,1.63431321,897.75,896.22,1.434]
[1764771403078,1.63431321,897.74,896.22,1.434]
[1764771403478,1.63431321,897.75,896.22,1.434]
[1764771403681,1.63431321,897.74,896.22,1.434]
[1764771403983,1.63431321,897.72,896.22,1.434]
[1764771404183,1.63431321,897.73,896.22,1.434]
[1764771404783,1.63431321,897.72,896.08,1.13]
[1764771404981,1.63431321,897.72,896.09,0.71020263]
[1764771405185,1.63431321,897.7,896.08,1.13]
[1764771405481,1.63431321,897.71,896.09,0.71033429]
[1764771405680,1.63431321,897.71,896.08,1.13]
[1764771405883,1.63431321,897.71,896.09,0.71033421]
[1764771406085,1.63431321,897.71,896.1,0.71033421]
[1764771406280,1.63431321,897.71,896.08,1.13]
[1764771406481,1.63431321,897.73,896.09,0.71031825]
[1764771406684,1.63431321,897.73,896.1,0.71031825]
[1764771406987,1.63431321,897.73,896.11,0.71031825]
[1764771407181,5.94887049,898.19,896.12,0.71031825]
[1764771407182,1.63431321,897.78,896.12,0.71031825]
[1764771407487,1.63431321,897.91,896.13,0.71031825]
[1764771407684,1.63431321,897.92,896.14,0.71031825]
[1764771407883,1.63431321,897.92,896.15,0.71031825]
[1764771408186,1.63431321,897.94,896.16,0.71031825]
[1764771408383,1.63431321,897.94,896.17,0.71031825]
[1764771408587,1.63431321,897.94,896.13,1.389]
[1764771408588,1.63431321,897.94,896.18,0.71031825]
[1764771408782,1.63431321,897.94,896.13,1.389]
[1764771408783,1.63431321,897.97,896.19,0.71031825]
[1764771408989,1.63431321,897.97,896.2,0.71031825]
[1764771409187,1.63431321,897.97,896.21,0.71031825]
[1764771409386,1.63431321,897.97,896.22,0.71031825]
[1764771409593,1.63431321,897.97,896.23,0.71031825]
[1764771409787,1.63431321,897.97,896.24,0.71031825]
[1764771409990,5.94887049,898.19,896.25,0.71031825]
[1764771409991,1.63431321,898.0,896.25,0.71031825]
[1764771410287,1.63431321,898.0,896.26,0.71031825]
[1764771410488,1.63431321,898.03,896.27,0.71031825]
[1764771410693,1.63431321,898.03,896.28,0.71031825]
[1764771410894,1.63431321,898.12,896.29,0.71031825]
[1764771411090,1.63431321,898.12,896.3,0.71031825]
[1764771411289,1.63431321,898.12,896.31,0.71031825]
[1764771411594,1.63431321,898.12,896.32,0.71031825]
[1764771411794,1.63431321,898.12,896.33,0.71031825]
[1764771412094,1.63431321,898.12,896.34,0.71031825]
[1764771412290,1.63431321,898.13,896.35,0.71031825]
[1764771412590,1.63431321,898.13,896.22,1.489]
[1764771412591,5.94887049,898.19,896.36,0.71031825]
[1764771412794,5.94887049,898.19,896.37,0.71031825]
[1764771412998,5.94887049,898.19,896.38,0.71031825]
[1764771413291,5.94887049,898.19,896.39,0.71031825]
[1764771413495,5.94887049,898.19,896.4,0.71031825]
[1764771413697,5.94887049,898.19,896.41,0.71031825]
[1764771413896,5.94887049,898.19,896.42,0.71031825]
[1764771414098,5.94887049,898.19,896.43,0.71031825]
[1764771414294,5.94887049,898.19,896.44,0.71031825]
[1764771414494,5.94887049,898.19,896.45,0.71031825]
[1764771414800,5.94887049,898.19,896.46,0.71031825]
[1764771414998,5.94887049,898.19,896.47,0.71031825]
[1764771415196,5.94887049,898.19,896.28,0.82962997]
[1764771415197,5.94887049,898.19,896.48,0.71031825]
[1764771415396,5.94887049,898.19,896.49,0.71031825]
[1764771415598,5.94887049,898.19,896.28,0.82962997]
[1764771415599,5.94887049,898.19,896.5,0.71031825]
[1764771415898,5.94887049,898.19,896.51,0.71031825]
[1764771416097,5.94887049,898.19,896.52,0.71031825]
[1764771416294,5.94887049,898.19,896.53,0.71031825]
[1764771416596,5.94887049,898.19,896.54,0.71031825]
[1764771416799,5.94887049,898.19,896.55,0.71031825]
[1764771416998,5.94887049,898.19,896.56,0.71031825]
[1764771417295,5.94887049,898.19,896.27,0.82962997]
[1764771417494,5.94887049,898.19,896.28,0.70934463]
[1764771417794,5.94887049,898.19,896.29,0.70934463]
[1764771417993,7.5831837,898.19,896.3,0.70934463]
[1764771418198,1.63431321,898.03,896.31,0.70934463]
[1764771418397,1.63431321,898.03,896.32,0.70934463]
[1764771418596,1.63431321,898.03,896.22,1.489]
[1764771418797,1.63431321,898.03,896.23,0.70940303]
[1764771418997,1.63431321,898.02,896.24,0.70940303]
[1764771419199,1.63431321,898.02,896.25,0.70940303]
[1764771419397,1.63431321,898.02,896.26,0.70940303]
[1764771419595,1.63431321,898.02,896.22,1.489]
[1764771419596,1.63431321,898.01,896.27,0.70940303]
[1764771419801,1.63431321,897.82,896.22,1.489]
[1764771420902,1.63431321,897.81,896.22,1.489]
[1764771421099,1.63431321,897.84,896.22,1.489]
[1764771421502,1.63431321,897.82,896.22,1.489]
[1764771422299,1.63431321,897.85,896.22,1.489]
[1764771423299,1.63431321,897.88,896.22,1.489]
[1764771423703,1.63431321,897.95,896.22,1.489]
[1764771423901,1.63431321,898.02,896.23,0.70902226]
[1764771424106,5.94887049,898.19,896.24,0.70902226]
[1764771424107,1.63431321,898.05,896.24,0.70902226]
[1764771424302,1.63431321,898.05,896.25,0.70902226]
[1764771424507,1.63431321,898.05,896.26,0.70902226]
[1764771424807,1.63431321,898.11,896.27,0.70872854]
[1764771425101,1.63431321,898.11,896.28,0.70872854]
[1764771425302,5.94887049,898.19,896.22,1.489]
[1764771425303,1.63431321,898.14,896.29,0.70872854]
[1764771425505,1.63431321,898.15,896.3,0.70872854]
[1764771425705,1.63431321,898.15,896.31,0.70872854]